Workbook

Sheet コードJ
A1: コードJ | C1: 朝 | G1: 昼 | K1: 夕 | O1: 合計
D2: ｴﾈﾙｷﾞｰkcal | E2: 蛋白質g | F2: 塩分ｇ | H2: ｴﾈﾙｷﾞｰkcal | I2: 蛋白質g | J2: 塩分ｇ | L2: ｴﾈﾙｷﾞｰkcal | M2: 蛋白質g | N2: 塩分ｇ | O2: ｴﾈﾙｷﾞｰkcal | P2: 蛋白質g | Q2: 塩分ｇ
A3: 2024-06-01 | B3: =TEXT(A3,"aaa") -> 土 | C3: CP10 | D3: 110 | E3: 12 | F3: 0.09 | G3: CP10 | H3: 110 | I3: 12 | J3: 0.09 | K3: CP10 | L3: 110 | M3: 12 | N3: 0.09
A4: [帳票印刷] | B4: 1 | C4: こだわりシェフの鶏の照焼煮こごり | D4: 79 | E4: 6.3 | F4: 0.7 | G4: 豆腐寄せかに | H4: 33 | I4: 4.1 | J4: 0.4 | K4: こだわりシェフさばの味噌煮こごり | L4: 77 | M4: 5.9 | N4: 0.6
C5: 豆腐寄せ えび | D5: 31 | E5: 3.6 | F5: 0.4 | G5: やわらか倶楽部クリームシチュー | H5: 100 | I5: 5 | J5: 0.6 | K5: やわらか倶楽部肉じゃが | L5: 100 | M5: 5 | N5: 0.61
D6: =SUM(D3:D5) -> 220 | E6: 21.9 | F6: 1.19 | G6: 0 | H6: 243 | I6: 21.1 | J6: 1.09 | L6: =SUM(L3:L5) -> 287 | M6: =SUM(M3:M5) -> 22.9 | N6: =SUM(N3:N5) -> 1.3 | O6: =D6+H6+L6 -> 750 | P6: =F6+I6+M6 -> 45.19 | Q6: =F6+J6+N6 -> 3.58
A7: =A3+1 -> 2024-06-02 | B7: =TEXT(A7,"aaa") -> 日 | C7: CP10 | D7: 110 | E7: 12 | F7: 0.09 | G7: CP10 | H7: 110 | I7: 12 | J7: 0.09 | K7: CP10 | L7: 110 | M7: 12 | N7: 0.09
A8: [帳票印刷] | B8: 1 | C8: 豆腐寄せ ささみ | D8: 33 | E8: 3.8 | F8: 0.5 | G8: やわらか倶楽部かに玉 | H8: 100 | I8: 5 | J8: 0.72 | K8: 豆腐寄せ えび | L8: 31 | M8: 3.6 | N8: 0.4
C9: こだわりシェフのぶたの生姜焼き煮こごり | D9: 76 | E9: 6.3 | F9: 0.7 | G9: 栄養支援プリン とうもろこし | H9: 84 | I9: 5.6 | J9: 0.1 | K9: やわらか倶楽部すき焼き | L9: 100 | M9: 5 | N9: 0.67
D10: =SUM(D7:D9) -> 219 | E10: 22.1 | F10: 1.29 | G10: 0 | H10: 294 | I10: 22.6 | J10: 0.91 | L10: =SUM(L7:L9) -> 241 | M10: =SUM(M7:M9) -> 20.6 | N10: =SUM(N7:N9) -> 1.16 | O10: =D10+H10+L10 -> 754 | P10: =F10+I10+M10 -> 44.49 | Q10: =F10+J10+N10 -> 3.36
A11: =A7+1 -> 2024-06-03 | B11: =TEXT(A11,"aaa") -> 月 | C11: CP10 | D11: 110 | E11: 12 | F11: 0.09 | G11: CP10 | H11: 110 | I11: 12 | J11: 0.09 | K11: CP10 | L11: 110 | M11: 12 | N11: 0.09
A12: [帳票印刷] | B12: 1 | C12: 茶碗蒸しゆず | D12: 100 | E12: 5 | F12: 0.81 | G12: やわらか倶楽部からあげ | H12: 100 | I12: 5 | J12: 0.63 | K12: やわらか倶楽部ハンバーグ | L12: 100 | M12: 5 | N12: 0.63
C13: こだわりシェフのまぐろの煮こごり | D13: 71 | E13: 6.8 | F13: 0.6 | G13: 和風プリン（栗） | H13: 64 | I13: 1.4 | J13: 0.81 | K13: やわらか倶楽部クリームシチュー | L13: 100 | M13: 5 | N13: 0.6
D14: =SUM(D11:D13) -> 281 | E14: 23.8 | F14: 1.5 | G14: 0 | H14: 274 | I14: 18.4 | J14: 1.53 | L14: =SUM(L11:L13) -> 310 | M14: =SUM(M11:M13) -> 22 | N14: =SUM(N11:N13) -> 1.32 | O14: =D14+H14+L14 -> 865 | P14: =F14+I14+M14 -> 41.9 | Q14: =F14+J14+N14 -> 4.35
A15: =A11+1 -> 2024-06-04 | B15: =TEXT(A15,"aaa") -> 火 | C15: CP10 | D15: 110 | E15: 12 | F15: 0.09 | G15: CP10 | H15: 110 | I15: 12 | J15: 0.09 | K15: CP10 | L15: 110 | M15: 12 | N15: 0.09
A16: [帳票印刷] | B16: 1 | C16: やわらか倶楽部ビーフシチュー | D16: 100 | E16: 5 | F16: 0.62 | G16: こだわりシェフのさばのみそ煮こごり | H16: 77 | I16: 5.9 | J16: 0.6 | K16: こだわりシェフのとりの照焼煮こごり | L16: 79 | M16: 6.3 | N16: 0.7
C17: 茶碗蒸かに | D17: 100 | E17: 5 | F17: 0.46 | G17: 茶碗蒸しかつお | H17: 100 | I17: 5 | J17: 0.46 | K17: 豆腐寄せさけ | L17: 32 | M17: 3.7 | N17: 0.4
D18: =SUM(D15:D17) -> 310 | E18: 22 | F18: 1.17 | G18: 0 | H18: 287 | I18: 22.9 | J18: 1.15 | L18: =SUM(L15:L17) -> 221 | M18: =SUM(M15:M17) -> 22 | N18: =SUM(N15:N17) -> 1.19 | O18: =D18+H18+L18 -> 818 | P18: =F18+I18+M18 -> 46.07 | Q18: =F18+J18+N18 -> 3.51
A19: =A15+1 -> 2024-06-05 | B19: =TEXT(A19,"aaa") -> 水 | C19: CP10 | D19: 110 | E19: 12 | F19: 0.09 | G19: CP10 | H19: 110 | I19: 12 | J19: 0.09 | K19: CP10 | L19: 110 | M19: 12 | N19: 0.09
A20: [帳票印刷] | B20: 1 | C20: こだわりシェフかれいの煮こごり | D20: 75 | E20: 6.2 | F20: 1.8 | G20: こだわりシェフのぶたの生姜焼き煮こごり | H20: 76 | I20: 6.3 | J20: 0.7 | K20: やわらか倶楽部カレー | L20: 100 | M20: 6.3 | N20: 0.7
C21: 茶碗蒸しゆず | D21: 100 | E21: 5 | F21: 0.81 | G21: 豆腐寄せさけ | H21: 32 | I21: 3.7 | J21: 0.4 | K21: 栄養支援プリンかぼちゃ | L21: 84 | M21: 5.6 | N21: 0.1
D22: =SUM(D19:D21) -> 285 | E22: 23.2 | F22: 2.7 | G22: 0 | H22: 218 | I22: 22 | J22: 1.19 | L22: =SUM(L19:L21) -> 294 | M22: =SUM(M19:M21) -> 23.9 | N22: =SUM(N19:N21) -> 0.89 | O22: =D22+H22+L22 -> 797 | P22: =F22+I22+M22 -> 48.6 | Q22: =F22+J22+N22 -> 4.78
A23: =A19+1 -> 2024-06-06 | B23: =TEXT(A23,"aaa") -> 木 | C23: CP10 | D23: 110 | E23: 12 | F23: 0.09 | G23: CP10 | H23: 110 | I23: 12 | J23: 0.09 | K23: CP10 | L23: 110 | M23: 12 | N23: 0.09
A24: [帳票印刷] | B24: 1 | C24: こだわりシェフのまぐろの煮こごり | D24: 71 | E24: 6.8 | F24: 0.6 | G24: こだわりシェフのチキンカレーの煮こごり | H24: 79 | I24: 6.2 | J24: 0.7 | K24: こだわりシェフのうなぎのかば焼き煮凝り | L24: 82 | M24: 5.8 | N24: 0.8
C25: 茶碗蒸かつお | D25: 100 | E25: 5 | F25: 0.46 | G25: 茶碗蒸しゆず | H25: 100 | I25: 5 | J25: 0.81 | K25: 豆腐寄せさけ | L25: 32 | M25: 3.7 | N25: 0.4
D26: =SUM(D23:D25) -> 281 | E26: 23.8 | F26: 1.15 | G26: 0 | H26: 289 | I26: 23.2 | J26: 1.6 | L26: =SUM(L23:L25) -> 224 | M26: =SUM(M23:M25) -> 21.5 | N26: =SUM(N23:N25) -> 1.29 | O26: =D26+H26+L26 -> 794 | P26: =F26+I26+M26 -> 45.85 | Q26: =F26+J26+N26 -> 4.04
A27: =A23+1 -> 2024-06-07 | B27: =TEXT(A27,"aaa") -> 金 | C27: CP10 | D27: 110 | E27: 12 | F27: 0.09 | G27: CP10 | H27: 110 | I27: 12 | J27: 0.09 | K27: CP10 | L27: 110 | M27: 12 | N27: 0.09
A28: [帳票印刷] | B28: 1 | C28: こだわりシェフのぶたの生姜焼き煮こごり | D28: 76 | E28: 6.3 | F28: 0.7 | G28: こだわりシェフのうなぎのかば焼き煮凝り | H28: 82 | I28: 5.8 | J28: 0.8 | K28: こだわりシェフさばの味噌煮こごり | L28: 77 | M28: 5.9 | N28: 0.6
C29: 茶碗蒸しかつお | D29: 100 | E29: 5 | F29: 0.81 | G29: 茶碗蒸しかに | H29: 100 | I29: 5 | J29: 0.46 | K29: 茶碗蒸ゆず | L29: 100 | M29: 5 | N29: 0.46
D30: =SUM(D27:D29) -> 286 | E30: 23.3 | F30: 1.6 | G30: 0 | H30: 292 | I30: 22.8 | J30: 1.35 | L30: =SUM(L27:L29) -> 287 | M30: =SUM(M27:M29) -> 22.9 | N30: =SUM(N27:N29) -> 1.15 | O30: =D30+H30+L30 -> 865 | P30: =F30+I30+M30 -> 47.3 | Q30: =F30+J30+N30 -> 4.1

Sheet コード2
A1: コード2 | C1: 朝 | G1: 昼 | K1: 夕 | O1: 合計
D2: ｴﾈﾙｷﾞｰkcal | E2: 蛋白質g | F2: 塩分ｇ | H2: ｴﾈﾙｷﾞｰkcal | I2: 蛋白質g | J2: 塩分ｇ | L2: ｴﾈﾙｷﾞｰkcal | M2: 蛋白質g | N2: 塩分ｇ | O2: ｴﾈﾙｷﾞｰkcal | P2: 蛋白質g | Q2: 塩分ｇ
A3: =コードJ!A3 -> 2024-06-01 | B3: =TEXT(A3,"aaa") -> 土 | C3: 粥150ｇ+MCT減塩梅びしお | D3: 127.9 | E3: 1.25 | F3: 0.28 | G3: 粥150ｇ+MCTのり佃煮 | H3: 131.1 | I3: 1.345 | J3: 0.165 | K3: 粥150ｇ+MCTたけのこ+麺つゆ | L3: 126.8 | M3: 1.29 | N3: 0.415
C4: ブレンダー食鶏と野菜のトマト煮 | D4: 105 | E4: 6.3 | F4: 0.9 | G4: なめらか定食八宝菜1/2袋 | H4: 100 | I4: 5.3 | J4: 0.8 | K4: ブレンダー野菜のクリーム煮 | L4: 106 | M4: 2.7 | N4: 0.8
C5: メイバランスピーチヨーグルト | D5: 200 | E5: 7.5 | F5: 0.3 | G5: やわらか倶楽部かに玉 | H5: 100 | I5: 5 | J5: 0.72 | K5: やわらか倶楽部すき焼き | L5: 100 | M5: 5 | N5: 0.67
C6: 豆腐寄せ えび | D6: 31 | E6: 3.6 | F6: 0.4 | G6: 栄養支援プリン とうもろこし | H6: 84 | I6: 5.6 | J6: 0.1 | K6: BIOラフランス | L6: 110 | M6: 12 | N6: 0.09
G7: ホリ乳業ヨーグルト | H7: 67 | I7: 2.3 | J7: 0.1
D8: =SUM(D3:D6) -> 463.9 | E8: =SUM(E3:E6) -> 18.65 | F8: 1.88 | H8: =SUM(H3:H6) -> 415.1 | I8: =SUM(I3:I6) -> 17.245 | J8: =SUM(J3:J6) -> 1.785 | L8: =SUM(L3:L6) -> 442.8 | M8: =SUM(M3:M6) -> 20.99 | N8: 1.975 | O8: =D8+H8+L8 -> 1321.8 | P8: =E8+I8+M8 -> 56.885 | Q8: =SUM(F8+J8+N8) -> 5.64
A9: =A3+1 -> 2024-06-02 | B9: =TEXT(A9,"aaa") -> 日 | C9: 粥150ｇ+MCT減塩梅びしお | D9: 127.9 | E9: 1.25 | F9: 0.28 | G9: 粥150ｇ+MCTのり佃煮 | H9: 131.1 | I9: 1.345 | J9: 0.165 | K9: 粥150ｇ+MCTたけのこ+麺つゆ | L9: 126.8 | M9: 1.29 | N9: 0.415
C10: 茶碗蒸しゆず | D10: 100 | E10: 5 | F10: 0.81 | G10: なめらか定食さばの味噌煮1/2袋 | H10: 200 | I10: 4.45 | J10: 1.15 | K10: なめらか定食チキンのトマトソース煮1/2袋 | L10: 100 | M10: 5.05 | N10: 1.2
C11: こだわりシェフのまぐろの煮こごり | D11: 71 | E11: 6.8 | F11: 0.6 | G11: やわらか倶楽部すきやき | H11: 100 | I11: 5 | J11: 0.63 | K11: やわらか倶楽部ハンバーグ | L11: 100 | M11: 5 | N11: 0.63
C12: 栄養支援プリンほうれんそう | D12: 84 | E12: 5.6 | F12: 0.1 | G12: 栄養支援プリンかぼちゃ | H12: 84 | I12: 5.6 | J12: 0.1 | K12: リハタイムゼリーもも | L12: 100 | M12: 10 | N12: 0
G13: ホリ乳業ヨーグルト | H13: 67 | I13: 2.3 | J13: 0.1
D14: =SUM(D9:D12) -> 382.9 | E14: =SUM(E9:E12) -> 18.65 | F14: 1.79 | H14: =SUM(H9:H12) -> 515.1 | I14: =SUM(I9:I12) -> 16.395 | J14: 2.045 | L14: =SUM(L9:L12) -> 426.8 | M14: =SUM(M9:M12) -> 21.34 | N14: 2.245 | O14: =D14+H14+L14 -> 1324.8 | P14: =E14+I14+M14 -> 56.385 | Q14: =SUM(F14+J14+N14) -> 6.08
A15: =A9+1 -> 2024-06-03 | B15: =TEXT(A15,"aaa") -> 月 | C15: なめらかおじや | D15: 81 | E15: 2 | F15: 1.8 | G15: 粥150ｇ+MCTのり佃煮 | H15: 131.1 | I15: 1.345 | J15: 0.165 | K15: 粥150ｇ+MCTたけのこ+麺つゆ | L15: 126.8 | M15: 1.29 | N15: 0.415
C16: やわらか倶楽部ハンバーグ | D16: 100 | E16: 5 | F16: 0.63 | G16: なめらかおかず大豆と煮もの | H16: 75 | I16: 3.9 | J16: 0.6 | K16: なめらか定食八宝菜1/2袋 | L16: 100 | M16: 5.3 | N16: 0.8
C17: ブレンダー食かにのクリーム煮 | D17: 105 | E17: 6.3 | F17: 0.9 | G17: 茶碗蒸しかつお | H17: 100 | I17: 5 | J17: 0.46 | K17: メイバランスソフトジェリーバナナヨーグルト | L17: 200 | M17: 7.5 | N17: 0.3
C18: えねぱくゼリーメロン | D18: 125 | E18: 5 | F18: 0.07 | G18: BIOラフランス | H18: 110 | I18: 12 | J18: 0.09 | K18: やわらか倶楽部クリームシチュー | L18: 100 | M18: 5 | N18: 0.63
G19: ホリ乳業ヨーグルト | H19: 67 | I19: 2.3 | J19: 0.1
D20: =SUM(D15:D18) -> 411 | E20: =SUM(E15:E18) -> 18.3 | F20: 3.4 | H20: =SUM(H15:H18) -> 416.1 | I20: =SUM(I15:I18) -> 22.245 | J20: 1.315 | L20: =SUM(L15:L18) -> 526.8 | M20: =SUM(M15:M18) -> 19.09 | N20: 2.145 | O20: =D20+H20+L20 -> 1353.9 | P20: =E20+I20+M20 -> 59.635 | Q20: =SUM(F20+J20+N20) -> 6.86
A21: =A15+1 -> 2024-06-04 | B21: =TEXT(A21,"aaa") -> 火 | C21: 粥150ｇ+MCT減塩梅びしお | D21: 127.9 | E21: 1.25 | F21: 0.28 | G21: 粥150ｇ+MCTのり佃煮 | H21: 131.1 | I21: 1.345 | J21: 0.165 | K21: なめらかおじや | L21: 81 | M21: 2 | N21: 1.8
C22: 茶碗蒸しゆず | D22: 100 | E22: 5 | F22: 0.46 | G22: こだわりシェフの焼さけの煮こごり | H22: 70 | I22: 6.2 | J22: 0.8 | K22: なめらか定食デミグラスハンバーグ1/2袋 | L22: 100 | M22: 5.4 | N22: 1.2
C23: メイバランスヨーグルト | D23: 200 | E23: 7.5 | F23: 0.3 | G23: 牛のすき焼き煮こごり | H23: 92 | I23: 6.3 | J23: 0.7 | K23: メイバランスはちみつヨーグルト | L23: 200 | M23: 7.5 | N23: 0.3
C24: こだわりシェフのぶたの生姜焼煮こごり | D24: 76 | E24: 6.3 | F24: 0.7 | G24: リハタイムゼリーマスカット | H24: 100 | I24: 10 | J24: 0 | K24: 栄養支援プリンかぼちゃ | L24: 84 | M24: 5.6 | N24: 0.1
D26: =SUM(D21:D24) -> 503.9 | E26: =SUM(E21:E24) -> 20.05 | F26: 1.74 | H26: =SUM(H21:H24) -> 393.1 | I26: =SUM(I21:I24) -> 23.845 | J26: 1.665 | L26: =SUM(L21:L24) -> 465 | M26: =SUM(M21:M24) -> 20.5 | N26: 3.4 | O26: =D26+H26+L26 -> 1362 | P26: =E26+I26+M26 -> 64.395 | Q26: =SUM(F26+J26+N26) -> 6.805
A27: =A21+1 -> 2024-06-05 | B27: =TEXT(A27,"aaa") -> 水 | C27: 粥150ｇ+MCT減塩梅びしお | D27: 127.9 | E27: 1.25 | F27: 0.28 | G27: 粥150ｇ+MCTのり佃煮 | H27: 131.1 | I27: 1.345 | J27: 0.165 | K27: 粥150ｇ+MCTたけのこ+麺つゆ | L27: 126.8 | M27: 1.29 | N27: 0.415
C28: 茶碗蒸しかに | D28: 100 | E28: 5 | F28: 0.46 | G28: なめらかおかず肉じゃが | H28: 91 | I28: 1.6 | J28: 0.5 | K28: こだわりシェフの焼さけの煮こごり | L28: 70 | M28: 6.2 | N28: 0.8
C29: えねぱくぜりーりんご | D29: 125 | E29: 5 | F29: 0.07 | G29: なめらか定食さばの味噌煮 | H29: 200 | I29: 9.9 | K29: なめらか定食八宝菜1/2袋 | L29: 100 | M29: 5.4 | N29: 1.2
C30: ブレンダー食ミニ鶏と野菜のトマト煮 | D30: 102 | E30: 4.2 | F30: 1.1 | G30: リハタイムゼリーもも | H30: 100 | I30: 10 | J30: 0 | K30: BIOラフランス | L30: 110 | M30: 12 | N30: 0.09
D32: =SUM(D27:D30) -> 454.9 | E32: =SUM(E27:E30) -> 15.45 | F32: 1.91 | H32: =SUM(H27:H30) -> 522.1 | I32: =SUM(I27:I30) -> 22.845 | J32: 0.665 | L32: =SUM(L27:L30) -> 406.8 | M32: =SUM(M27:M30) -> 24.89 | N32: 2.505 | O32: =D32+H32+L32 -> 1383.8 | P32: =E32+I32+M32 -> 63.185 | Q32: =SUM(F32+J32+N32) -> 5.08
A33: =A27+1 -> 2024-06-06 | B33: =TEXT(A33,"aaa") -> 木 | C33: 粥150ｇ+MCT減塩梅びしお | D33: 127.9 | E33: 1.25 | F33: 0.28 | G33: なめらかおじや | H33: 81 | I33: 2 | J33: 1.8 | K33: 粥150ｇ+MCTたけのこ+麺つゆ | L33: 126.8 | M33: 1.29 | N33: 0.415
C34: なめらかおかず大豆と煮もの | D34: 75 | E34: 3.9 | F34: 0.6 | G34: なめらかおかず鶏肉と野菜 | H34: 77 | I34: 3.6 | J34: 0.5 | K34: なめらか定食チキンのトマトソース煮 | L34: 200 | M34: 10.1 | N34: 0.4
C35: ﾒｲﾊﾞﾗﾝｽマスカットヨーグルト | D35: 200 | E35: 7.5 | F35: 0.3 | G35: やわらか倶楽部ビーフシチュー | H35: 100 | I35: 5 | J35: 0.67 | K35: ブレンダーかにのクリーム煮 | L35: 103 | M35: 2.7 | N35: 0.7
C36: 茶碗蒸かつお | D36: 100 | E36: 5 | F36: 0.46 | G36: ホリ乳業ヨーグルト | H36: 67 | I36: 2.3 | J36: 0.1 | K36: メイバランスはちみつヨーグルト | L36: 200 | M36: 7.5 | N36: 0.3
D38: =SUM(D33:D36) -> 502.9 | E38: =SUM(E33:E36) -> 17.65 | F38: 1.64 | H38: =SUM(H33:H36) -> 325 | I38: =SUM(I33:I36) -> 12.9 | J38: 3.07 | L38: =SUM(L33:L36) -> 629.8 | M38: =SUM(M33:M36) -> 21.59 | N38: 1.815 | O38: =D38+H38+L38 -> 1457.7 | P38: =E38+I38+M38 -> 52.14 | Q38: =SUM(F38+J38+N38) -> 6.525
A39: =A33+1 -> 2024-06-07 | B39: =TEXT(A39,"aaa") -> 金 | C39: なめらかおじや | D39: 81 | E39: 2 | F39: 1.8 | G39: 粥150ｇ+MCTたけのこ+麺つゆ | H39: 126.8 | I39: 1.29 | J39: 0.415 | K39: 粥150ｇ+MCT減塩梅びしお | L39: 127.9 | M39: 1.25 | N39: 0.28
C40: 茶碗蒸しゆず | D40: 100 | E40: 5 | F40: 0.81 | G40: ブレンダー肉じゃが | H40: 109 | I40: 6.8 | J40: 0.8 | K40: こだわりシェフのかれいの煮こごり | L40: 75 | M40: 6.2 | N40: 0.6
C41: 栄養支援プリンとうもろこし | D41: 84 | E41: 5.6 | F41: 0.1 | G41: こだわりシェフさばの味噌煮こごり | H41: 77 | I41: 5.9 | J41: 0.6 | K41: メイバランスソフトジェリー苺 | L41: 200 | M41: 7.5 | N41: 0.3
C42: こだわりシェフのぶたの生姜焼煮こごり | D42: 76 | E42: 6.3 | F42: 0.7 | G42: BIOラフランス | H42: 110 | I42: 12 | J42: 0.09 | K42: ブレンダービーフシチュー | L42: 109 | M42: 5 | N42: 0.9
G43: ホリ乳業ヨーグルト | H43: 67 | I43: 2.3 | J43: 0.1
D44: =SUM(D39:D42) -> 341 | E44: =SUM(E39:E42) -> 18.9 | F44: 3.41 | H44: =SUM(H39:H42) -> 422.8 | I44: =SUM(I39:I42) -> 25.99 | J44: 1.905 | L44: =SUM(L39:L42) -> 511.9 | M44: =SUM(M39:M42) -> 19.95 | N44: 2.08 | O44: =D44+H44+L44 -> 1275.7 | P44: =E44+I44+M44 -> 64.84 | Q44: =SUM(F44+J44+N44) -> 7.395

Sheet コード3
A1: コード3 | C1: 朝 | G1: 昼 | K1: 夕 | O1: 合計
D2: ｴﾈﾙｷﾞｰkcal | E2: 蛋白質g | F2: 塩分ｇ | H2: ｴﾈﾙｷﾞｰkcal | I2: 蛋白質g | J2: 塩分ｇ | L2: ｴﾈﾙｷﾞｰkcal | M2: 蛋白質g | N2: 塩分g | O2: ｴﾈﾙｷﾞｰkcal | P2: 蛋白質g | Q2: 塩分ｇ
A3: =コードJ!A3 -> 2024-06-01 | B3: =TEXT(A3,"aaa") -> 土 | C3: 粥100ｇ | D3: 150 | E3: 7 | G3: 粥100ｇ | H3: 150 | I3: 7 | K3: 粥100ｇ | L3: 150 | M3: 7
C4: エバスマイルすき焼き | D4: 147 | E4: 3.3 | F4: 1.4 | G4: 123弁当+ヨーグルト | H4: 348 | I4: 18.2 | J4: 1.7 | K4: 123弁当 | L4: 283 | M4: 17 | N4: 1.7
C5: 豆腐寄せ えび | D5: 31 | E5: 3.6 | F5: 0.4 | G5: 和風プリン（紫芋） | H5: 55 | I5: 1.4 | J5: 0.7 | K5: こだわりシェフの焼さけの煮こごり | L5: 70 | M5: 6.2 | N5: 0.8
D6: =SUM(D3:D5) -> 328 | E6: =SUM(E3:E5) -> 13.9 | F6: =SUM(F3:F5) -> 1.8 | H6: =SUM(H3:H5) -> 553 | I6: =SUM(I3:I5) -> 26.6 | J6: =SUM(J3:J5) -> 2.4 | L6: =SUM(L3:L5) -> 503 | M6: =SUM(M3:M5) -> 30.2 | N6: =SUM(N3:N5) -> 2.5 | O6: =D6+H6+L6 -> 1384 | P6: =E6+I6+M6 -> 70.7 | Q6: =SUM(F6,J6,N6) -> 6.7
A7: =A3+1 -> 2024-06-02 | B7: =TEXT(A7,"aaa") -> 日 | C7: 粥100ｇ | D7: 150 | E7: 7 | G7: 粥100ｇ | H7: 150 | I7: 7 | K7: 粥100ｇ | L7: 150 | M7: 7
C8: エバスマイル照り焼きチキン | D8: 144 | E8: 3.7 | F8: 1.6 | G8: 123弁当+ヨーグルト | H8: 348 | I8: 18.2 | J8: 1.7 | K8: 123弁当 | L8: 283 | M8: 17 | N8: 1.7
C9: やわらか倶楽部カレー | D9: 100 | E9: 5 | F9: 0.72 | G9: 和風プリン（栗） | H9: 64 | I9: 1.4 | J9: 0.1 | K9: こだわりシェフのまぐろの煮こごり | L9: 71 | M9: 6.8 | N9: 0.6
D10: =SUM(D7:D9) -> 394 | E10: =SUM(E7:E9) -> 15.7 | F10: =SUM(F7:F9) -> 2.32 | H10: =SUM(H7:H9) -> 562 | I10: =SUM(I7:I9) -> 26.6 | J10: =SUM(J7:J9) -> 1.8 | L10: =SUM(L7:L9) -> 504 | M10: =SUM(M7:M9) -> 30.8 | N10: =SUM(N7:N9) -> 2.3 | O10: =D10+H10+L10 -> 1460 | P10: =E10+I10+M10 -> 73.1 | Q10: =SUM(F10,J10,N10) -> 6.42
A11: =A7+1 -> 2024-06-03 | B11: =TEXT(A11,"aaa") -> 月 | C11: 粥100ｇ | D11: 150 | E11: 7 | G11: 粥100ｇ | H11: 150 | I11: 7 | K11: 粥100ｇ | L11: 150 | M11: 7
C12: エバスマイルクリームシチュー | D12: 158 | E12: 3.3 | F12: 0.9 | G12: 123弁当+ヨーグルト | H12: 348 | I12: 18.2 | J12: 1.7 | K12: 123弁当 | L12: 282 | M12: 16.5 | N12: 1.7
C13: やわらか倶楽部ハンバーグ | D13: 100 | E13: 5 | F13: 0.63 | G13: やわらか倶楽部すき焼き | H13: 100 | I13: 5 | J13: 0.67 | K13: えねぱくゼリーオレンジ | L13: 125 | M13: 5 | N13: 0.07
D14: =SUM(D11:D13) -> 408 | E14: =SUM(E11:E13) -> 15.3 | F14: 1.53 | H14: 598 | I14: 30.2 | J14: 2.37 | L14: 557 | M14: 28.5 | N14: 1.77 | O14: =SUM(D14,H14,L14) -> 1563 | P14: =SUM(E14,I14,M14) -> 74 | Q14: 5.67
A15: =A11+1 -> 2024-06-04 | B15: =TEXT(A15,"aaa") -> 火 | C15: 粥100ｇ | D15: 150 | E15: 7 | G15: 粥100ｇ | H15: 150 | I15: 7 | K15: 粥100ｇ | L15: 150 | M15: 7
C16: エバスマイル鶏とかぼちゃの煮物 | D16: 131 | E16: 3.9 | F16: 1.1 | G16: 弁当（ムース食）+豆腐寄せカニ | H16: 282 | I16: 15.7 | J16: 1.6 | K16: 弁当（ムース食） | L16: 284 | M16: 16.6 | N16: 1.6
C17: こだわりシェフの牛のすき焼き煮こごり | D17: 92 | E17: 6.3 | F17: 0.7 | G17: 和風プリン（南瓜） | H17: 56 | I17: 1.3 | J17: 0 | K17: こだわりシェフさばの味噌煮こごり | L17: 77 | M17: 5.9 | N17: 0.6
D18: =SUM(D15:D17) -> 373 | E18: =SUM(E15:E17) -> 17.2 | F18: 1.8 | H18: 488 | I18: 24 | J18: 1.6 | L18: 511 | M18: 29.5 | N18: 2.2 | O18: =SUM(D18,H18,L18) -> 1372 | P18: =SUM(E18,I18,M18) -> 70.7 | Q18: 5.6
A19: =A15+1 -> 2024-06-05 | B19: =TEXT(A19,"aaa") -> 水 | C19: 粥100ｇ | D19: 150 | E19: 7 | G19: 粥100ｇ | H19: 150 | I19: 7 | K19: 粥100ｇ | L19: 150 | M19: 7
C20: エバースマイルデミグラハンバーグ | D20: 120 | E20: 5 | F20: 1.3 | G20: 弁当（ムース食）+豆腐寄せエビ | H20: 282 | I20: 15.7 | J20: 1.6 | K20: 弁当（ムース食） | L20: 284 | M20: 16.6 | N20: 1.6
C21: やわらか倶楽部肉じゃが | D21: 100 | E21: 5 | F21: 0.61 | G21: えねぱくゼリー白ブドウ | H21: 125 | I21: 5 | J21: 0.07 | K21: やわらか倶楽部クリームシチュー | L21: 100 | M21: 5
D22: =SUM(D19:D21) -> 370 | E22: =SUM(E19:E21) -> 17 | F22: 1.91 | H22: 557 | I22: 27.7 | J22: 1.67 | L22: 534 | M22: 28.6 | N22: 1.6 | O22: =SUM(D22,H22,L22) -> 1461 | P22: =SUM(E22,I22,M22) -> 73.3 | Q22: =SUM(F22,J22,N22) -> 5.18
A23: =A19+1 -> 2024-06-06 | B23: =TEXT(A23,"aaa") -> 木 | C23: 粥100ｇ | D23: 150 | E23: 7 | G23: 粥100ｇ | H23: 150 | I23: 7 | K23: 粥100ｇ | L23: 150 | M23: 7
C24: エバスマイルすき焼き | D24: 147 | E24: 3.3 | F24: 1.4 | G24: 123弁当+ヨーグルト | H24: 348 | I24: 18.2 | J24: 1.7 | K24: 123弁当（ムース食） | L24: 285 | M24: 16.2 | N24: 1.6
C25: えねぱくぜりーりんご | D25: 125 | E25: 5 | F25: 0.07 | G25: やわらか倶楽部ビーフシチュー | H25: 100 | I25: 5 | J25: 0.62 | K25: こだわりシェフのぶたの生姜焼き煮こごり | L25: 76 | M25: 6.3 | N25: 0.7
D26: =SUM(D23:D25) -> 422 | E26: =SUM(E23:E25) -> 15.3 | F26: 1.47 | H26: =SUM(H23:H25) -> 598 | I26: 30.2 | J26: 2.32 | L26: 511 | M26: 29.5 | N26: 2.3 | O26: =SUM(D26,H26,L26) -> 1531 | P26: =SUM(E26,I26,M26) -> 75 | Q26: =SUM(F26,J26,N26) -> 6.09
A27: =A23+1 -> 2024-06-07 | B27: =TEXT(A27,"aaa") -> 金 | C27: 粥100ｇ | D27: 150 | E27: 7 | G27: 粥100ｇ | H27: 150 | I27: 7 | K27: 粥100ｇ | L27: 150 | M27: 7
C28: エバスマイル酢豚 | D28: 121 | E28: 3.4 | F28: 0.8 | G28: 弁当（ムース食）+ヨーグルト | H28: 348 | I28: 18.2 | J28: 1.7 | K28: 123弁当（ムース食） | L28: 288 | M28: 15 | N28: 1.5
C29: 和風プリン（小豆） | D29: 59 | E29: 1.5 | F29: 0.08 | G29: こだわりシェフかれいの煮こごり | H29: 75 | I29: 6.2 | J29: 1.8 | K29: やわらか倶楽部カレー | L29: 100 | M29: 5
D30: =SUM(D27:D29) -> 330 | E30: =SUM(E27:E29) -> 11.9 | F30: 0.88 | H30: 573 | I30: 31.4 | J30: 3.5 | L30: 538 | M30: 27 | N30: 1.5 | O30: =SUM(D30,H30,L30) -> 1441 | P30: =SUM(E30,I30,M30) -> 70.3 | Q30: 5.88

Sheet コード4
A1: コード４ | C1: 朝 | G1: 昼 | K1: 夕 | O1: 合計
D2: ｴﾈﾙｷﾞｰkcal | E2: 蛋白質g | F2: 塩分ｇ | H2: ｴﾈﾙｷﾞｰkcal | I2: 蛋白質g | J2: 塩分ｇ | L2: ｴﾈﾙｷﾞｰkcal | M2: 蛋白質g | N2: 塩分ｇ | O2: ｴﾈﾙｷﾞｰkcal | P2: 蛋白質g | Q2: 塩分ｇ
A3: =コードJ!A3 -> 2024-06-01 | B3: =TEXT(A3,"aaa") -> 土 | C3: 粥100ｇ | D3: 150 | E3: 7 | G3: 粥100ｇ | H3: 150 | I3: 7 | K3: 粥100ｇ | L3: 150 | M3: 7
C4: エバスマイルすき焼き | D4: 147 | E4: 3.3 | F4: 1.4 | G4: 弁当(やわらか食） | H4: 179 | I4: 9.8 | J4: 1.2 | K4: 弁当(やわらか食） | L4: 179 | M4: 10.3 | N4: 1.2
C5: こだわりシェフの鶏の照焼煮こごり | D5: 79 | E5: 6.3 | F5: 0.7 | G5: 和風プリン（紫芋） | H5: 55 | I5: 1.4 | J5: 0.7 | K5: こだわりシェフの焼さけの煮こごり | L5: 70 | M5: 6.2 | N5: 0.8
C6: 豆腐寄せ えび | D6: 31 | E6: 3.6 | F6: 0.4 | G6: ホリ乳業ヨーグルト | H6: 67 | I6: 2.3 | J6: 0.1 | K6: 和風プリン（南瓜） | L6: 56 | M6: 1.3
D7: =SUM(D3:D6) -> 407 | E7: =SUM(E3:E6) -> 20.2 | F7: =SUM(F3:F6) -> 2.5 | H7: =SUM(H3:H6) -> 451 | I7: =SUM(I3:I6) -> 20.5 | J7: =SUM(J3:J6) -> 2 | L7: =SUM(L3:L6) -> 455 | M7: =SUM(M3:M6) -> 24.8 | N7: =SUM(N3:N6) -> 2 | O7: =SUM(D7,H7,L7) -> 1313 | P7: =SUM(E7,I7,M7) -> 65.5 | Q7: =SUM(F7,J7,N7) -> 6.5
A8: =A3+1 -> 2024-06-02 | B8: =TEXT(A8,"aaa") -> 日 | C8: 粥100ｇ | D8: 150 | E8: 7 | G8: 粥100ｇ | H8: 150 | I8: 7 | K8: 粥100ｇ | L8: 150 | M8: 7
C9: エバスマイル照り焼きチキン | D9: 144 | E9: 3.7 | F9: 1.6 | G9: 弁当(やわらか食） | H9: 179 | I9: 9.8 | J9: 1.2 | K9: 弁当(やわらか食） | L9: 179 | M9: 10.3 | N9: 1.2
C10: やわらか倶楽部カレー | D10: 100 | E10: 5 | F10: 0.72 | G10: 和風プリン（栗） | H10: 64 | I10: 1.4 | J10: 0.72 | K10: こだわりシェフのまぐろの煮こごり | L10: 71 | M10: 6.8 | N10: 0.6
C11: 和風プリン（黒ごま） | D11: 64 | E11: 1.4 | G11: ホリ乳業ヨーグルト | H11: 67 | I11: 2.3 | J11: 0.1 | K11: 豆腐寄せ ささみ | L11: 33 | M11: 3.8 | N11: 0.5
D12: =SUM(D8:D11) -> 458 | E12: =SUM(E8:E11) -> 17.1 | F12: =SUM(F8:F11) -> 2.32 | H12: =SUM(H8:H11) -> 460 | I12: =SUM(I8:I11) -> 20.5 | J12: =SUM(J8:J11) -> 2.02 | L12: =SUM(L8:L11) -> 433 | M12: =SUM(M8:M11) -> 27.9 | N12: =SUM(N8:N11) -> 2.3 | O12: =SUM(D12,H12,L12) -> 1351 | P12: =SUM(E12,I12,M12) -> 65.5 | Q12: =SUM(F12,J12,N12) -> 6.64
A13: =A8+1 -> 2024-06-03 | B13: =TEXT(A13,"aaa") -> 月 | C13: 粥100ｇ | D13: 150 | E13: 7 | G13: 粥100ｇ | H13: 150 | I13: 7 | K13: 粥100ｇ | L13: 150 | M13: 7
C14: エバスマイルクリームシチュー | D14: 158 | E14: 3.3 | F14: 0.9 | G14: 弁当(やわらか食） | H14: 179 | I14: 9.8 | J14: 1.2 | K14: 弁当(やわらか食） | L14: 179 | M14: 10.3 | N14: 1.2
C15: やわらか倶楽部ハンバーグ | D15: 100 | E15: 5 | F15: 0.63 | G15: やわらか倶楽部すき焼き | H15: 100 | I15: 5 | J15: 0.67 | K15: えねぱくゼリーオレンジ | L15: 125 | M15: 5 | N15: 0.07
G16: ホリ乳業ヨーグルト | H16: 67 | I16: 2.3 | J16: 0.1
D17: =SUM(D13:D16) -> 408 | E17: =SUM(E13:E16) -> 15.3 | F17: =SUM(F13:F16) -> 1.53 | H17: =SUM(H13:H16) -> 496 | I17: =SUM(I13:I16) -> 24.1 | J17: =SUM(J13:J16) -> 1.97 | L17: =SUM(L13:L16) -> 454 | M17: =SUM(M13:M16) -> 22.3 | N17: =SUM(N13:N16) -> 1.27 | O17: =SUM(D17,H17,L17) -> 1358 | P17: =SUM(E17,I17,M17) -> 61.7 | Q17: =SUM(F17,J17,N17) -> 4.77
A18: =A13+1 -> 2024-06-04 | B18: =TEXT(A18,"aaa") -> 火 | C18: 粥100ｇ | D18: 150 | E18: 7 | G18: 粥100ｇ | H18: 150 | I18: 7 | K18: 粥100ｇ | L18: 150 | M18: 7
C19: エバスマイル鶏とかぼちゃの煮物 | D19: 131 | E19: 3.9 | F19: 1.1 | G19: 弁当(やわらか食） | H19: 179 | I19: 9.8 | J19: 1.2 | K19: 弁当(やわらか食） | L19: 179 | M19: 10.3 | N19: 1.2
C20: こだわりシェフの牛のすき焼き煮こごり | D20: 92 | E20: 6.3 | F20: 0.7 | G20: 豆腐寄せ かに | H20: 33 | I20: 4.1 | J20: 0.4 | K20: こだわりシェフさばの味噌煮こごり | L20: 77 | M20: 5.9 | N20: 0.6
G21: カロビタンゼリーキウイ | H21: 150 | I21: 0
D22: =SUM(D18:D21) -> 373 | E22: =SUM(E18:E21) -> 17.2 | F22: =SUM(F18:F21) -> 1.8 | H22: =SUM(H18:H21) -> 512 | I22: =SUM(I18:I21) -> 20.9 | J22: =SUM(J18:J21) -> 1.6 | L22: =SUM(L18:L21) -> 406 | M22: =SUM(M18:M21) -> 23.2 | N22: =SUM(N18:N21) -> 1.8 | O22: =SUM(D22,H22,L22) -> 1291 | P22: =SUM(E22,I22,M22) -> 61.3 | Q22: =SUM(F22,J22,N22) -> 5.2
A23: =A18+1 -> 2024-06-05 | B23: =TEXT(A23,"aaa") -> 水 | C23: 粥100ｇ | D23: 150 | E23: 7 | G23: 粥100ｇ | H23: 150 | I23: 7 | K23: 粥100ｇ | L23: 150 | M23: 7
C24: エバースマイルデミグラハンバーグ | D24: 120 | E24: 5 | F24: 1.3 | G24: 弁当(やわらか食） | H24: 179 | I24: 9.8 | J24: 1.2 | K24: 弁当(やわらか食） | L24: 179 | M24: 10.3 | N24: 1.2
C25: やわらか倶楽部肉じゃが | D25: 100 | E25: 5 | F25: 0.61 | G25: 豆腐寄せ えび | H25: 31 | I25: 3.6 | J25: 0.4 | K25: 和風プリン（南瓜） | L25: 56 | M25: 1.3 | N25: 0.4
G26: えねぱくゼリー白ブドウ | H26: 125 | I26: 5 | J26: 0.07 | K26: やわらか倶楽部からあげ | L26: 100 | M26: 5
D27: =SUM(D23:D26) -> 370 | E27: =SUM(E23:E26) -> 17 | F27: =SUM(F23:F26) -> 1.91 | H27: =SUM(H23:H26) -> 485 | I27: =SUM(I23:I26) -> 25.4 | J27: =SUM(J23:J26) -> 1.67 | L27: =SUM(L23:L26) -> 485 | M27: =SUM(M23:M26) -> 23.6 | N27: =SUM(N23:N26) -> 1.6 | O27: =SUM(D27,H27,L27) -> 1340 | P27: =SUM(E27,I27,M27) -> 66 | Q27: =SUM(F27,J27,N27) -> 5.18
A28: =A23+1 -> 2024-06-06 | B28: =TEXT(A28,"aaa") -> 木 | C28: 粥100ｇ | D28: 150 | E28: 7 | G28: 粥100ｇ | H28: 150 | I28: 7 | K28: 粥100ｇ | L28: 150 | M28: 7
C29: エバスマイルすき焼き | D29: 147 | E29: 3.3 | F29: 1.4 | G29: 弁当(やわらか食） | H29: 179 | I29: 9.8 | J29: 1.2 | K29: 弁当(やわらか食） | L29: 179 | M29: 10.3 | N29: 1.2
C30: えねぱくぜりーりんご | D30: 125 | E30: 5 | F30: 0.07 | G30: やわらか倶楽部ビーフシチュー | H30: 100 | I30: 5 | J30: 0.62 | K30: こだわりシェフのぶたの生姜焼き煮こごり | L30: 76 | M30: 6.3 | N30: 0.7
G31: ホリ乳業ヨーグルト | H31: 67 | I31: 2.3 | J31: 0.1 | K31: 栄養支援 かぼちゃのプリン | L31: 84 | M31: 5.6 | N31: 0.1
D32: =SUM(D28:D31) -> 422 | E32: =SUM(E28:E31) -> 15.3 | F32: =SUM(F28:F31) -> 1.47 | H32: =SUM(H28:H31) -> 496 | I32: =SUM(I28:I31) -> 24.1 | J32: =SUM(J28:J31) -> 1.92 | L32: =SUM(L28:L31) -> 489 | M32: =SUM(M28:M31) -> 29.2 | N32: =SUM(N28:N31) -> 2 | O32: =SUM(D32,H32,L32) -> 1407 | P32: =SUM(E32,I32,M32) -> 68.6 | Q32: =SUM(F32,J32,N32) -> 5.39
A33: =A28+1 -> 2024-06-07 | B33: =TEXT(A33,"aaa") -> 金 | C33: 粥100ｇ | D33: 150 | E33: 7 | G33: 粥100ｇ | H33: 150 | I33: 7 | K33: 粥100ｇ | L33: 150 | M33: 7
C34: エバスマイル酢豚 | D34: 121 | E34: 3.4 | F34: 0.8 | G34: 弁当(やわらか食） | H34: 179 | I34: 9.8 | J34: 1.2 | K34: 弁当(やわらか食） | L34: 179 | M34: 10.3 | N34: 1.2
C35: 和風プリン（小豆） | D35: 59 | E35: 1.5 | F35: 0.08 | G35: ホリ乳業ヨーグルト | H35: 67 | I35: 2.3 | J35: 0.1 | K35: えねぱくゼリーグレープ | L35: 125 | M35: 5 | N35: 0.07
G36: こだわりシェフかれいの煮こごり | H36: 75 | I36: 6.2 | J36: 1.8 | K36: やわらか倶楽部カレー | L36: 100 | M36: 5
D37: =SUM(D33:D36) -> 330 | E37: =SUM(E33:E36) -> 11.9 | F37: =SUM(F33:F36) -> 0.88 | H37: =SUM(H33:H36) -> 471 | I37: =SUM(I33:I36) -> 25.3 | J37: =SUM(J33:J36) -> 3.1 | L37: =SUM(L33:L36) -> 554 | M37: =SUM(M33:M36) -> 27.3 | N37: =SUM(N33:N36) -> 1.27 | O37: =SUM(D37,H37,L37) -> 1355 | P37: =SUM(E37,I37,M37) -> 64.5 | Q37: =SUM(F37,J37,N37) -> 5.25

Sheet 普通食米飯
A1: 普通食米飯 | C1: 朝 | G1: 昼 | K1: 夕 | O1: 合計
D2: ｴﾈﾙｷﾞｰkcal | E2: 蛋白質g | F2: 塩分ｇ | H2: ｴﾈﾙｷﾞｰkcal | I2: 蛋白質g | J2: 塩分ｇ | L2: ｴﾈﾙｷﾞｰkcal | M2: 蛋白質g | N2: 塩分ｇ | O2: ｴﾈﾙｷﾞｰkcal | P2: 蛋白質g | Q2: 塩分ｇ
A3: =コードJ!A3 -> 2024-06-01 | B3: =TEXT(A3,"aaa") -> 土 | C3: おいしい米飯200ｇ | D3: 288 | E3: 4.6 | F3: 0 | G3: おいしい米飯200ｇ | H3: 288 | I3: 4.6 | J3: 0 | K3: おいしい米飯200ｇ | L3: 288 | M3: 4.6 | N3: 0
C4: 冷凍⑧鶏肉と里芋 | D4: 187 | E4: 8.8 | F4: 1.1 | G4: 123弁当（普通食） | H4: 225 | I4: 13.3 | J4: 2 | K4: 123弁当（普通食） | L4: 225 | M4: 13.3 | N4: 2
C5: ジュースたっぷり食物繊維 | D5: 62 | E5: 0.1 | G5: ホリ乳業ヨーグルト | H5: 67 | I5: 2.3 | J5: 0.1 | K5: 豆腐寄せ さけ | L5: 32 | M5: 3.7 | N5: 0.4
C6: 豆腐寄せ えび | D6: 31 | E6: 3.6 | F6: 0.4 | G6: 大麦味噌汁小松菜 | H6: 24 | I6: 1.7 | J6: 1.3 | K6: 和風プリン（南瓜） | L6: 56 | M6: 1.3
D7: =SUM(D3:D6) -> 568 | E7: =SUM(E3:E6) -> 17.1 | F7: 1.5 | H7: =SUM(H3:H6) -> 604 | I7: =SUM(I3:I6) -> 21.9 | J7: =SUM(J3:J6) -> 3.4 | L7: =SUM(L3:L6) -> 601 | M7: =SUM(M3:M6) -> 22.9 | N7: =SUM(N3:N6) -> 2.4 | O7: =SUM(D7,H7,L7) -> 1773 | P7: =SUM(E7,I7,M7) -> 61.9 | Q7: =SUM(F7,J7,N7) -> 7.3
A8: =A3+1 -> 2024-06-02 | B8: =TEXT(A8,"aaa") -> 日 | C8: おいしい米飯200ｇ | D8: 288 | E8: 4.6 | F8: 0 | G8: おいしい米飯200ｇ | H8: 288 | I8: 4.6 | J8: 0 | K8: おいしい米飯200ｇ | L8: 288 | M8: 4.6 | N8: 0
C9: 冷凍⑤ウインナー | D9: 187 | E9: 8.8 | F9: 1.1 | G9: 123弁当（普通食） | H9: 188 | I9: 12.5 | J9: 2.5 | K9: 123弁当（普通食） | L9: 225 | M9: 13.3 | N9: 2
C10: きんとき豆 | D10: 118 | E10: 3.3 | F10: 0.2 | G10: ホリ乳業ヨーグルト | H10: 67 | I10: 2.3 | J10: 0.1 | K10: 豆腐寄せ ささみ | L10: 33 | M10: 3.8 | N10: 0.5
C11: ブイクレスニューベリーズ | D11: 25 | E11: 0.3 | F11: 0.01 | G11: 大麦味噌汁かき玉キャベツ | H11: 26 | I11: 1.6 | J11: 1.2
D12: =SUM(D8:D11) -> 618 | E12: =SUM(E8:E11) -> 17 | F12: =SUM(F8:F11) -> 1.31 | H12: =SUM(H8:H11) -> 569 | I12: =SUM(I8:I11) -> 21 | J12: =SUM(J8:J11) -> 3.8 | L12: =SUM(L8:L11) -> 546 | M12: =SUM(M8:M11) -> 21.7 | N12: =SUM(N8:N11) -> 2.5 | O12: =SUM(D12,H12,L12) -> 1733 | P12: =SUM(E12,I12,M12) -> 59.7 | Q12: =SUM(F12,J12,N12) -> 7.61
A13: =A8+1 -> 2024-06-03 | B13: =TEXT(A13,"aaa") -> 月 | C13: おいしい米飯200ｇ | D13: 288 | E13: 4.6 | F13: 0 | G13: おいしい米飯200ｇ | H13: 288 | I13: 4.6 | J13: 0 | K13: おいしい米飯200ｇ | L13: 288 | M13: 4.6 | N13: 0
C14: 冷凍⑦たちうお | D14: 187 | E14: 8.8 | F14: 1.1 | G14: 123弁当（普通食） | H14: 206 | I14: 12.7 | J14: 1.9 | K14: 123弁当（普通食） | L14: 225 | M14: 13.3 | N14: 2
C15: ジュース1日分の鉄 | D15: 56 | E15: 0.1 | G15: ホリ乳業ヨーグルト | H15: 67 | I15: 2.3 | J15: 0.1 | K15: えねぱくゼリーオレンジ | L15: 125 | M15: 5 | N15: 0.07
C16: 和風プリン（紫芋） | D16: 55 | E16: 1.4 | G16: 大麦味噌汁揚げなす | H16: 48 | I16: 1.5 | J16: 1.2 | K16: 豆腐寄せ さけ | L16: 32 | M16: 3.7 | N16: 0.4
D17: =SUM(D13:D16) -> 586 | E17: =SUM(E13:E16) -> 14.9 | F17: =SUM(F13:F16) -> 1.1 | H17: =SUM(H13:H16) -> 609 | I17: =SUM(I13:I16) -> 21.1 | J17: =SUM(J13:J16) -> 3.2 | L17: =SUM(L13:L16) -> 670 | M17: =SUM(M13:M16) -> 26.6 | N17: =SUM(N13:N16) -> 2.47 | O17: =SUM(D17,H17,L17) -> 1865 | P17: =SUM(E17,I17,M17) -> 62.6 | Q17: =SUM(F17,J17,N17) -> 6.77
A18: =A13+1 -> 2024-06-04 | B18: =TEXT(A18,"aaa") -> 火 | C18: おいしい米飯200ｇ | D18: 288 | E18: 4.6 | F18: 0 | G18: おいしい米飯200ｇ | H18: 288 | I18: 4.6 | J18: 0 | K18: おいしい米飯200ｇ | L18: 288 | M18: 4.6 | N18: 0
C19: 冷凍⑥厚揚げ | D19: 187 | E19: 8.8 | F19: 1.1 | G19: 123弁当（普通食） | H19: 197 | I19: 14.6 | J19: 1.8 | K19: 123弁当（普通食） | L19: 225 | M19: 13.3 | N19: 2
C20: 黒豆 | D20: 108 | E20: 4.1 | F20: 0.3 | G20: 和風プリン（南瓜） | H20: 56 | I20: 1.3 | J20: 0 | K20: 栄養支援プリンかぼちゃ | L20: 84 | M20: 5.6 | N20: 0.1
C21: ジュースたっぷり食物繊維 | D21: 62 | E21: 0.1 | F21: 0.1 | G21: 大麦味噌汁かき玉キャベツ | H21: 26 | I21: 1.6 | J21: 1.2
D22: =SUM(D18:D21) -> 645 | E22: =SUM(E18:E21) -> 17.6 | F22: =SUM(F18:F21) -> 1.5 | H22: =SUM(H18:H21) -> 567 | I22: =SUM(I18:I21) -> 22.1 | J22: =SUM(J18:J21) -> 3 | L22: =SUM(L18:L21) -> 597 | M22: =SUM(M18:M21) -> 23.5 | N22: =SUM(N18:N21) -> 2.1 | O22: =SUM(D22,H22,L22) -> 1809 | P22: =SUM(E22,I22,M22) -> 63.2 | Q22: =SUM(F22,J22,N22) -> 6.6
A23: =A18+1 -> 2024-06-05 | B23: =TEXT(A23,"aaa") -> 水 | C23: おいしい米飯200ｇ | D23: 288 | E23: 4.6 | F23: 0 | G23: おいしい米飯200ｇ | H23: 288 | I23: 4.6 | J23: 0 | K23: おいしい米飯200ｇ | L23: 288 | M23: 4.6 | N23: 0
C24: 冷凍⑫ビーフン炒め | D24: 187 | E24: 8.8 | F24: 1.1 | G24: 123弁当（普通食） | H24: 184 | I24: 12 | J24: 2.1 | K24: 123弁当（普通食） | L24: 225 | M24: 13.3 | N24: 2
C25: ジュース1日分の鉄 | D25: 56 | E25: 0.1 | G25: えねぱくゼリー白ブドウ | H25: 125 | I25: 5 | J25: 0.07 | K25: 豆腐寄せ さけ | L25: 32 | M25: 3.7 | N25: 0.4
C26: 豆腐寄せ ささみ | D26: 33 | E26: 3.8 | F26: 0.5 | G26: 大麦味噌汁とうふ | H26: 25 | I26: 1.8 | J26: 1.1
D27: =SUM(D23:D26) -> 564 | E27: =SUM(E23:E26) -> 17.3 | F27: =SUM(F23:F26) -> 1.6 | H27: =SUM(H23:H26) -> 622 | I27: =SUM(I23:I26) -> 23.4 | J27: =SUM(J23:J26) -> 3.27 | L27: =SUM(L23:L26) -> 545 | M27: =SUM(M23:M26) -> 21.6 | N27: =SUM(N23:N26) -> 2.4 | O27: =SUM(D27,H27,L27) -> 1731 | P27: =SUM(E27,I27,M27) -> 62.3 | Q27: =SUM(F27,J27,N27) -> 7.27
A28: =A23+1 -> 2024-06-06 | B28: =TEXT(A28,"aaa") -> 木 | C28: おいしい米飯200ｇ | D28: 288 | E28: 4.6 | F28: 0 | G28: おいしい米飯200ｇ | H28: 288 | I28: 4.6 | J28: 0 | K28: おいしい米飯200ｇ | L28: 288 | M28: 4.6 | N28: 0
C29: 冷凍⑤ウインナー | D29: 187 | E29: 8.8 | F29: 1.1 | G29: 123弁当（普通食） | H29: 169 | I29: 15.9 | J29: 1.7 | K29: 123弁当（普通食） | L29: 225 | M29: 13.3 | N29: 2
C30: きんとき豆 | D30: 118 | E30: 3.3 | F30: 0.2 | G30: ホリ乳業ヨーグルト | H30: 67 | I30: 2.3 | J30: 0.1 | K30: 栄養支援 かぼちゃのプリン | L30: 84 | M30: 5.6 | N30: 0.1
C31: ブイクレスニューピーチ | D31: 90 | E31: 0.3 | F31: 0.03 | G31: 大麦味噌汁揚げなす | H31: 48 | I31: 1.5 | J31: 1.2
D32: =SUM(D28:D31) -> 683 | E32: =SUM(E28:E31) -> 17 | F32: =SUM(F28:F31) -> 1.33 | H32: =SUM(H28:H31) -> 572 | I32: =SUM(I28:I31) -> 24.3 | J32: =SUM(J28:J31) -> 3 | L32: =SUM(L28:L31) -> 597 | M32: =SUM(M28:M31) -> 23.5 | N32: =SUM(N28:N31) -> 2.1 | O32: =SUM(D32,H32,L32) -> 1852 | P32: =SUM(E32,I32,M32) -> 64.8 | Q32: =SUM(F32,J32,N32) -> 6.43
A33: =A28+1 -> 2024-06-07 | B33: =TEXT(A33,"aaa") -> 金 | C33: おいしい米飯200ｇ | D33: 288 | E33: 4.6 | F33: 0 | G33: おいしい米飯200ｇ | H33: 288 | I33: 4.6 | J33: 0 | K33: おいしい米飯200ｇ | L33: 288 | M33: 4.6 | N33: 0
C34: 冷凍⑧鶏肉と里芋 | D34: 187 | E34: 8.8 | F34: 1.1 | G34: 123弁当（普通食） | H34: 174 | I34: 12.6 | J34: 1.8 | K34: 123弁当（普通食） | L34: 225 | M34: 13.3 | N34: 2
C35: ブイクレスマンゴー | D35: 80 | E35: 0.7 | F35: 0.04 | G35: ホリ乳業ヨーグルト | H35: 67 | I35: 2.3 | J35: 0.1 | K35: 豆腐寄せ かに | L35: 33 | M35: 4.1 | N35: 0.4
C36: 和風プリン（小豆） | D36: 59 | E36: 1.5 | F36: 0.08 | G36: 大麦味噌汁とうふ | H36: 25 | I36: 1.8 | J36: 1.1
D37: =SUM(D33:D36) -> 614 | E37: =SUM(E33:E36) -> 15.6 | F37: =SUM(F33:F36) -> 1.22 | H37: =SUM(H33:H36) -> 554 | I37: =SUM(I33:I36) -> 21.3 | J37: =SUM(J33:J36) -> 3 | L37: =SUM(L33:L36) -> 546 | M37: =SUM(M33:M36) -> 22 | N37: =SUM(N33:N36) -> 2.4 | O37: =SUM(D37,H37,L37) -> 1714 | P37: =SUM(E37,I37,M37) -> 58.9 | Q37: =SUM(F37,J37,N37) -> 6.62

Sheet テンプレート朝
A1: 朝
A2: 【コード Ｊ】
A3: =IF(B3<>"", "■主：", "") -> 
A4: =IF(B4<>"", "■副①", "") -> 
A5: =IF(B5<>"", "■副②", "") -> 
A7: 【コード ２】
A8: =IF(B8<>"", "■主：", "") -> 
A9: =IF(B9<>"", "■副①", "") -> 
A10: =IF(B10<>"", "■副②", "") -> 
A11: =IF(B11<>"", "■副③", "") -> 
A12: =IF(B12<>"", "■副④", "") -> 
A14: 【コード ３】
A15: =IF(B15<>"", "■主：", "") -> 
A16: =IF(B16<>"", "■副①", "") -> 
A17: =IF(B17<>"", "■副②", "") -> 
A19: 【コード ４】
A20: =IF(B20<>"", "■主：", "") -> 
A21: =IF(B21<>"", "■副①", "") -> 
A22: =IF(B22<>"", "■副②", "") -> 
A23: =IF(B23<>"", "■副③", "") -> 
A25: 【普通食米飯】
A26: =IF(B26<>"", "■主：", "") -> 
A27: =IF(B27<>"", "■副①", "") -> 
A28: =IF(B28<>"", "■副②", "") -> 
A29: =IF(B29<>"", "■副③", "") -> 

Sheet テンプレート昼
A1: 昼
A2: 【コード Ｊ】
A3: =IF(B3<>"", "■主：", "") -> 
A4: =IF(B4<>"", "■副①", "") -> 
A5: =IF(B5<>"", "■副②", "") -> 
A7: 【コード ２】
A8: =IF(B8<>"", "■主：", "") -> 
A9: =IF(B9<>"", "■副①", "") -> 
A10: =IF(B10<>"", "■副②", "") -> 
A11: =IF(B11<>"", "■副③", "") -> 
A12: =IF(B12<>"", "■副④", "") -> 
A14: 【コード ３】
A15: =IF(B15<>"", "■主：", "") -> 
A16: =IF(B16<>"", "■副①", "") -> 
A17: =IF(B17<>"", "■副②", "") -> 
A19: 【コード ４】
A20: =IF(B20<>"", "■主：", "") -> 
A21: =IF(B21<>"", "■副①", "") -> 
A22: =IF(B22<>"", "■副②", "") -> 
A23: =IF(B23<>"", "■副③", "") -> 
A25: 【普通食米飯】
A26: =IF(B26<>"", "■主：", "") -> 
A27: =IF(B27<>"", "■副①", "") -> 
A28: =IF(B28<>"", "■副②", "") -> 
A29: =IF(B29<>"", "■副③", "") -> 

Sheet テンプレート夕
A1: 夕
A2: 【コード Ｊ】
A3: =IF(B3<>"", "■主：", "") -> 
A4: =IF(B4<>"", "■副①", "") -> 
A5: =IF(B5<>"", "■副②", "") -> 
A7: 【コード ２】
A8: =IF(B8<>"", "■主：", "") -> 
A9: =IF(B9<>"", "■副①", "") -> 
A10: =IF(B10<>"", "■副②", "") -> 
A11: =IF(B11<>"", "■副③", "") -> 
A12: =IF(B12<>"", "■副④", "") -> 
A14: 【コード ３】
A15: =IF(B15<>"", "■主：", "") -> 
A16: =IF(B16<>"", "■副①", "") -> 
A17: =IF(B17<>"", "■副②", "") -> 
A19: 【コード ４】
A20: =IF(B20<>"", "■主：", "") -> 
A21: =IF(B21<>"", "■副①", "") -> 
A22: =IF(B22<>"", "■副②", "") -> 
A23: =IF(B23<>"", "■副③", "") -> 
A25: 【普通食米飯】
A26: =IF(B26<>"", "■主：", "") -> 
A27: =IF(B27<>"", "■副①", "") -> 
A28: =IF(B28<>"", "■副②", "") -> 
A29: =IF(B29<>"", "■副③", "") -> 
